bitfinex/quotes_ETHUSD_20241119
["timestamp","ask_amount","ask_price","bid_price","bid_amount"]
[1732027245859,4.02399,3107.5,3106.8,3.21865]
[1732027246067,3.21831,3107.3,3106.6,3.21894]
[1732027246504,3.21822,3107.4,3106.7,3.21883]
[1732027246740,1.9518742,3107.5,3106.4,3.21916]
[1732027246741,0.8059,3107.5,3106.4,3.21916]
[1732027246943,0.8059,3107.5,3107.3,3.21822]
[1732027247089,0.8291,3108.1,3107.5,3.21794]
[1732027247426,4.0465,3108.1,3107.5,3.21794]
[1732027247631,0.8291,3108.1,3107.6,3.21791]
[1732027247787,0.8291,3108.1,3108.0,3.2175]
[1732027247989,0.8391,3108.5,3108.0,3.2175]
[1732027248242,0.01,3108.5,3108.0,3.2175]
[1732027248540,0.01,3108.5,3108.4,3.21708]
[1732027248991,0.01,3108.5,3108.4,3.76708]
[1732027249208,0.01,3108.5,3108.4,7.55318]
[1732027249629,1e-05,3108.5,3108.4,7.56318]
[1732027249958,0.757,3110.0,3109.7,3.21565]
[1732027250103,0.757,3110.0,3109.2,0.8126]
[1732027250104,0.757,3110.0,3109.4,3.21601]
[1732027250415,3.21572,3109.8,3109.1,3.21635]
[1732027250642,0.321572,3109.7,3109.1,3.21635]
[1732027251006,0.321572,3109.7,3108.8,0.8126]
[1732027251007,0.321572,3109.7,3109.5,3.21594]
[1732027251206,0.757,3110.0,3109.0,3.21636]
[1732027251445,0.757,3110.0,3108.9,3.76655]
[1732027251634,0.757,3110.0,3109.2,3.21625]
[1732027251834,3.612781,3109.9,3109.2,3.21625]
[1732027252509,3.612781,3109.9,3108.9,0.55]
[1732027252854,3.612781,3109.9,3109.1,3.76629]
[1732027253019,0.397241,3109.9,3109.4,3.21601]
[1732027253209,0.397241,3109.9,3109.2,3.21622]
[1732027253409,3.21572,3109.8,3109.1,3.76629]
[1732027253632,0.757,3110.0,3109.1,0.55]
[1732027253946,3.97247,3110.0,3109.1,3.21629]
[1732027254112,3.21587,3109.6,3109.1,0.55]
[1732027254316,3.21592,3109.6,3108.9,3.21648]
[1732027254511,3.859076,3109.6,3109.0,3.21645]
[1732027254824,0.643156,3109.6,3109.0,3.21638]
[1732027255029,3.21583,3109.7,3109.0,3.21638]
[1732027255350,3.612817,3109.9,3109.1,3.21629]
[1732027255532,3.6526917,3109.8,3109.1,3.21629]
[1732027255744,3.21585,3109.6,3109.0,3.21645]
[1732027256110,0.4369817,3109.8,3109.1,3.21635]
[1732027256346,3.397247,3109.9,3108.7,3.21676]
[1732027256646,3.612857,3109.9,3109.2,3.21622]
[1732027257009,3.21564,3109.8,3109.2,3.21622]
[1732027257433,3.21578,3109.7,3109.1,0.55]
[1732027257647,3.21592,3109.6,3109.1,0.55]
[1732027257848,3.21584,3109.6,3108.1,3.2173]
[1732027258060,3.21607,3109.4,3108.1,3.21736]
[1732027258222,3.21607,3109.4,3108.7,3.21677]
[1732027258573,0.64317,3109.5,3108.7,3.21674]
[1732027258723,0.64317,3109.5,3108.0,3.97946]
[1732027258912,0.7606,3109.7,3109.2,3.21618]
[1732027259113,0.7606,3109.7,3109.0,3.21646]
[1732027259308,0.7606,3109.7,3108.8,3.21664]
[1732027259548,3.21602,3109.5,3108.8,3.21664]
[1732027259711,3.21599,3109.5,3108.8,3.21664]
[1732027259915,0.7606,3109.7,3108.8,3.21664]
[1732027260135,3.21584,3109.6,3108.7,3.21673]
[1732027260338,0.397644,3109.5,3108.5,0.55]
[1732027260625,3.21657,3108.9,3108.3,3.21711]
[1732027260836,3.22582,3109.7,3107.9,0.7866]
[1732027260837,0.8261,3109.4,3108.0,3.21745]
[1732027261042,3.21624,3109.3,3108.7,3.21675]
[1732027261268,0.8261,3109.4,3108.7,3.21674]
[1732027261461,3.21636,3109.1,3108.5,3.21697]
[1732027261831,3.2166,3108.9,3108.3,3.21716]
[1732027262066,0.8261,3109.4,3108.1,0.7866]
[1732027262233,0.8261,3109.4,3108.1,4.00391]
[1732027262234,3.21676,3108.8,3108.1,4.00391]
[1732027262567,3.2171,3108.4,3107.8,3.21766]
[1732027263059,0.8261,3108.7,3108.2,3.21719]
[1732027263278,0.7954,3109.0,3108.4,3.21699]
[1732027263420,0.7954,3109.3,3107.7,1.43575648]
[1732027263635,1.2171932,3109.3,3108.8,3.21665]
[1732027263988,0.7954,3109.3,3108.8,3.21663]
[1732027264259,3.21642,3109.1,3108.4,4.02302]
[1732027264464,0.321642,3109.0,3108.6,3.21679]
[1732027264619,3.21626,3109.2,3108.1,0.55]
[1732027264959,3.21652,3109.0,3108.4,3.21702]
[1732027265178,3.2163,3109.2,3108.6,3.21684]
[1732027265510,7.433582,3109.8,3108.1,3.55]
[1732027265511,3.21589,3109.6,3108.9,3.2165]
[1732027265769,3.21654,3109.0,3108.3,3.21711]
[1732027265950,4.227932,3109.8,3108.3,3.21711]
[1732027265951,0.8202,3110.2,3109.5,3.21594]
[1732027266120,0.8202,3110.2,3108.6,3.21682]
[1732027266121,0.8202,3110.2,3109.8,3.21561]
[1732027266323,0.8202,3110.2,3109.4,3.21601]
[1732027266522,3.21549,3110.0,3109.4,3.21601]
[1732027266732,3.21549,3110.0,3108.8,0.8293]
[1732027266962,0.321549,3109.9,3109.5,3.21594]
[1732027267162,4.03546,3110.2,3109.5,3.21594]
[1732027267348,3.21533,3110.1,3109.0,3.21641]
[1732027267559,3.21533,3110.1,3108.7,3.21673]
[1732027267560,0.8202,3109.5,3108.7,3.21673]
[1732027267857,0.8202,3109.5,3108.5,4.04625]
[1732027268088,0.8202,3109.5,3108.7,3.21671]
[1732027268219,3.21622,3109.3,3108.7,3.21671]
[1732027268425,0.321622,3109.2,3108.2,4.04655]
[1732027268663,3.21617,3109.3,3108.7,3.21676]
[1732027268875,3.941407,3109.3,3108.7,3.21676]
[1732027269026,3.941407,3109.3,3108.7,3.2167]
[1732027269027,0.725237,3109.3,3108.7,3.2167]
[1732027269226,0.725237,3109.3,3108.7,3.21668]
[1732027269474,0.725237,3109.3,3108.8,3.21666]
[1732027269631,3.21626,3109.2,3108.6,3.2168]
[1732027269973,0.3941497,3109.2,3108.9,3.21654]
[1732027270122,4.03619,3109.5,3108.9,3.21651]
[1732027270324,4.03623,3109.5,3108.9,3.2165]
[1732027270556,3.21612,3109.4,3108.7,3.21671]
[1732027270756,3.619743,3109.4,3108.7,3.21671]
[1732027270958,3.619743,3109.4,3108.3,3.21715]
[1732027270959,3.619743,3109.4,3108.8,3.21664]
[1732027271272,4.03623,3109.5,3108.5,0.55]
[1732027271273,0.8202,3109.5,3108.5,0.55]
[1732027271421,0.8202,3109.5,3108.4,0.55]
[1732027271623,0.7509,3110.0,3109.0,3.21646]
[1732027271828,3.96638,3110.0,3109.3,3.21609]
[1732027272023,3.2157,3109.8,3109.1,3.21628]
[1732027272281,0.396638,3109.9,3108.5,0.823]
[1732027272477,0.396638,3109.9,3108.4,3.21703]
[1732027272478,3.97338,3109.0,3108.4,3.21703]
[1732027272621,0.7569,3109.0,3108.1,0.823]
[1732027272825,3.21592,3109.6,3109.0,3.21638]
[1732027273062,0.7569,3109.7,3108.1,0.823]
[1732027273063,3.21611,3109.4,3108.6,3.21684]
[1732027273260,0.397282,3109.5,3108.2,3.21729]
[1732027273513,0.7569,3109.7,3109.5,3.21593]
[1732027273665,0.7569,3109.7,3109.3,3.21606]
[1732027273866,0.7569,3109.7,3109.5,3.21589]
[1732027274506,0.7569,3109.7,3109.3,3.21613]
[1732027274685,0.7569,3109.7,3109.6,3.21584]
[1732027275047,0.8002,3110.5,3109.6,3.81354945]
[1732027275167,4.01439,3111.2,3110.5,3.21483]
[1732027275366,0.4505324,3111.1,3110.2,0.765]
[1732027275570,0.8002,3111.2,3110.8,3.2146]
[1732027275828,0.8002,3111.2,3110.6,3.21474]
[1732027276108,0.8002,3111.2,3110.7,3.21468]
[1732027276406,1.202119,3111.2,3110.8,3.21452]
[1732027276607,1.202119,3111.2,3110.2,3.98018]
[1732027276608,0.8002,3111.2,3110.6,3.21474]
[1732027276824,3.61623,3111.1,3110.1,3.21532]
[1732027277015,0.40193,3111.1,3110.3,3.21504]
[1732027277171,0.8002,3111.2,3110.3,3.21504]
[1732027277367,0.8002,3111.2,3110.1,3.21531]
[1732027277668,0.005,3111.3,3109.9,3.21545]
[1732027277669,0.7908,3110.4,3109.9,3.21545]
[1732027277981,1.191371,3110.4,3109.8,3.21564]
[1732027278211,1.191371,3110.4,3108.6,3.21681]
[1732027278212,3.21545,3110.0,3109.3,3.21608]
[1732027278423,6.43055,3110.2,3109.4,3.21595]
[1732027278603,0.400606,3110.2,3108.6,0.8301]
[1732027278814,3.21536,3110.1,3109.4,3.21598]
[1732027279019,3.2156,3109.9,3109.2,3.21624]
[1732027279239,0.7908,3110.4,3110.1,3.21523]
[1732027279386,0.7908,3110.4,3109.9,3.21545]
[1732027279579,0.7908,3110.4,3110.0,3.21534]
[1732027279820,0.7908,3110.4,3110.1,3.21531]
[1732027280344,3.96742,3110.8,3109.6,3.2158]
[1732027280492,0.7528,3110.8,3109.6,3.21584]
[1732027280741,0.7528,3111.1,3110.7,3.21469]
[1732027281056,0.005,3111.3,3111.0,3.2144]
[1732027281872,0.005,3111.3,3110.2,0.7535]
[1732027281873,0.005,3111.3,3110.3,0.55]
[1732027282034,0.005,3111.3,3110.9,3.21447]
[1732027282564,0.005,3111.3,3111.0,3.2143]
[1732027282758,0.005,3111.3,3110.8,3.2146]
[1732027282958,0.005,3111.3,3110.8,3.21454]
[1732027283181,0.005,3111.3,3111.0,3.2143]
[1732027283479,0.005,3111.3,3111.2,3.21419]
[1732027283630,0.8246,3112.2,3111.7,3.21358]
[1732027283835,4.03778,3112.2,3111.5,3.21386]
[1732027284070,0.8246,3112.2,3111.7,3.21365]
[1732027284229,3.21266,3112.7,3111.4,3.21392]
[1732027284438,3.21266,3112.7,3112.1,3.21325]
[1732027284636,0.8328,3112.8,3112.3,3.21299]
[1732027284945,0.8328,3112.8,3112.2,3.21315]
[1732027285464,0.8328,3112.8,3111.6,0.7534]
[1732027285645,0.8328,3112.8,3112.2,3.21308]
[1732027285971,0.8328,3112.8,3111.8,3.21354]
[1732027286219,3.21264,3112.7,3111.9,3.21345]
[1732027286483,0.09985865,3113.2,3112.4,3.0]
[1732027286680,0.09985865,3113.2,3113.1,3.21223]
[1732027287734,0.09985865,3113.2,3112.3,3.8085]
[1732027287940,0.89905865,3113.2,3112.3,4.02154]
[1732027288246,0.09985865,3113.2,3112.4,0.55]
[1732027288570,0.09985865,3113.2,3113.1,0.8085]
[1732027288786,0.09985865,3113.2,3113.1,3.21223]
[1732027288934,0.09985865,3113.2,3113.0,3.2123]
[1732027289141,0.09985865,3113.2,3113.1,3.21223]
[1732027289971,0.875,3113.7,3113.1,3.21217]
[1732027290191,0.7513,3113.5,3113.0,3.21232]
[1732027290411,3.21209,3113.3,3112.7,0.8085]
[1732027290672,0.7513,3113.5,3112.3,0.8004]
[1732027290876,0.7513,3113.5,3112.9,3.21236]
[1732027291375,3.2121,3113.3,3112.5,3.21275]
[1732027291987,3.21257,3112.8,3112.1,3.21324]
[1732027292273,3.21232,3113.1,3112.1,3.21324]
[1732027292471,3.21232,3113.1,3112.4,3.21294]
[1732027292777,3.97544,3112.8,3112.2,3.21312]
[1732027292981,0.7629,3112.8,3112.2,3.21312]
[1732027293285,0.7629,3113.2,3111.9,0.8004]
[1732027293434,3.97504,3113.2,3112.5,3.21281]
[1732027293642,0.7629,3113.2,3112.5,3.21281]
[1732027293874,3.97503,3113.2,3112.5,3.21281]
[1732027294037,3.97503,3113.2,3112.6,3.21274]
[1732027294234,3.97503,3113.2,3111.9,0.8004]
[1732027294235,0.7629,3113.2,3111.6,3.0]
[1732027294436,3.21243,3113.0,3112.2,3.21313]
[1732027294636,3.21265,3112.7,3112.1,3.21326]
[1732027294881,3.21316,3112.2,3111.6,3.21369]
[1732027295089,3.21316,3112.2,3111.3,0.7733]
[1732027295090,4.01092,3112.4,3111.7,3.21365]
[1732027295387,3.21306,3112.3,3111.5,3.21378]
[1732027295543,3.21306,3112.3,3111.7,3.21367]
[1732027295970,4.01088,3112.4,3111.4,3.21398]
[1732027295971,0.7979,3112.4,3111.4,3.21398]
[1732027296180,3.21305,3112.3,3111.0,3.21436]
[1732027296386,3.21323,3112.2,3111.5,3.21384]
[1732027296652,0.7979,3112.4,3110.8,0.8242]
[1732027296653,0.7979,3112.4,3111.4,3.21391]
[1732027296941,3.21352,3111.9,3111.3,3.21408]
[1732027297149,3.21378,3111.6,3110.9,3.2145]
[1732027297376,0.7736,3111.7,3111.0,3.2144]
[1732027297541,0.7736,3112.1,3111.5,3.2138]
[1732027297735,0.7736,3112.1,3111.6,3.21375]
[1732027297975,3.21367,3111.8,3111.2,3.21415]
[1732027298176,3.21343,3112.0,3111.2,3.21415]
[1732027298384,0.7736,3112.1,3111.3,3.21406]
[1732027298589,0.7736,3112.1,3111.4,3.21395]
[1732027298590,3.21338,3112.0,3111.4,3.21395]
[1732027298740,3.21338,3112.0,3110.8,4.00196]
[1732027298741,3.21349,3111.9,3111.2,3.21412]
[1732027299082,3.21349,3111.9,3110.8,4.00196]
[1732027299083,3.98691,3112.1,3111.3,3.21408]
[1732027299239,3.21337,3112.0,3111.4,3.21391]
[1732027299445,0.7736,3112.1,3111.3,3.21408]
[1732027299708,3.21256,3112.8,3111.4,3.5986153]
[1732027299886,3.21209,3113.3,3112.6,3.21266]
[1732027300093,4.0325,3113.4,3112.6,3.21266]
[1732027300292,3.21211,3113.3,3112.6,3.21266]
[1732027300886,4.03248,3113.4,3111.8,3.0]
[1732027301193,4.03248,3113.4,3112.2,3.21307]
[1732027301194,0.8205,3113.4,3112.2,3.21307]
[1732027301391,4.0325,3113.4,3112.7,3.21255]
[1732027301598,0.8205,3113.4,3112.3,0.55]
[1732027301898,3.21218,3113.2,3112.6,3.21274]
[1732027302184,0.8205,3113.4,3112.3,1.3306]
[1732027302483,3.21211,3113.3,3112.6,3.21265]
[1732027302686,0.8205,3113.4,3112.8,3.21253]
[1732027302889,0.8205,3113.4,3112.8,3.21246]
[1732027303062,3.21205,3113.3,3112.3,1.3306]
[1732027303382,3.21205,3113.3,3112.6,3.21269]
[1732027303685,0.8205,3113.4,3112.3,1.3306]
[1732027303855,3.2121,3113.3,3112.6,3.21266]
[1732027304054,3.21216,3113.2,3112.6,3.21266]
[1732027304263,3.21216,3113.2,3112.2,3.21313]
[1732027304264,3.21255,3112.8,3112.2,3.21313]
[1732027304445,3.21255,3112.8,3112.3,3.21303]
[1732027304647,3.21255,3112.8,3112.1,3.21325]
[1732027304866,3.21255,3112.8,3111.8,6.42698]
[1732027304867,3.21295,3112.4,3111.8,6.42698]
[1732027305094,3.21293,3112.5,3111.5,1.25379055]
[1732027305261,0.8175,3112.6,3112.3,3.21298]
[1732027305459,3.21251,3112.9,3111.9,3.2134]
[1732027305676,3.21276,3112.6,3111.9,3.2134]
[1732027306185,4.00628,3113.1,3112.2,3.21313]
[1732027306186,3.2126,3112.8,3112.2,3.21313]
[1732027306351,3.21236,3113.0,3112.3,3.213]
[1732027306547,3.21241,3113.0,3112.3,3.213]
[1732027306778,3.21253,3112.9,3112.3,3.213]
[1732027306985,0.794,3113.1,3112.7,3.21262]
[1732027307157,0.794,3113.1,3112.7,3.21256]
[1732027307569,3.21194,3113.4,3112.8,3.21253]
[1732027308170,3.97929,3113.5,3112.9,3.21235]
[1732027308371,3.21222,3113.2,3112.5,3.21278]
[1732027308606,3.21222,3113.2,3112.6,3.21274]
[1732027309000,3.21204,3113.3,3112.7,3.21257]
[1732027309308,0.7674,3113.5,3112.8,3.21252]
[1732027309516,3.97928,3113.5,3112.9,3.21234]
[1732027309673,3.21214,3113.2,3112.6,3.21269]
[1732027309872,1.58816908,3113.5,3112.6,3.21269]
[1732027310063,1.58816908,3113.5,3112.9,3.21234]
[1732027310064,3.9793,3113.5,3112.9,3.21234]
[1732027310630,0.7674,3113.5,3112.6,3.21266]
[1732027310909,3.2121,3113.3,3112.7,3.21263]
[1732027311069,3.21192,3113.4,3112.8,3.21245]
[1732027311265,3.97926,3113.5,3112.3,0.8266]
[1732027311266,3.21209,3113.3,3112.7,3.21258]
[1732027312982,3.21192,3113.4,3112.8,3.21254]
[1732027313311,0.7674,3113.5,3112.6,3.2127]
[1732027313609,0.7674,3113.5,3112.7,3.21257]
[1732027313610,3.21192,3113.4,3112.7,3.21257]
[1732027313820,3.21192,3113.4,3112.8,3.2125]
[1732027313974,3.21216,3113.2,3112.6,3.21267]
[1732027314170,3.21216,3113.2,3112.7,3.21258]
[1732027314382,3.21216,3113.2,3112.6,3.21274]
[1732027314587,3.21219,3113.2,3112.6,3.21274]
[1732027314837,3.21223,3113.1,3112.6,3.21274]
[1732027315010,3.21237,3113.0,3112.4,3.21295]
[1732027315222,0.7674,3113.5,3112.0,0.8315]
[1732027315223,0.8037,3112.7,3112.0,0.8315]
[1732027315388,0.8037,3112.7,3111.9,3.2134]
[1732027315389,3.21285,3112.5,3111.9,3.2134]
[1732027315713,0.8037,3113.1,3112.3,3.21299]
[1732027316032,0.8037,3113.1,3111.7,0.8315]
[1732027316184,0.8037,3113.1,3112.5,3.21279]
[1732027316383,0.8037,3113.1,3112.8,3.21245]
[1732027316613,0.8037,3113.1,3112.6,3.21273]
[1732027316614,0.8037,3113.1,3112.6,3.21266]
[1732027316925,0.8037,3113.1,3112.7,3.21263]
[1732027317137,0.8037,3113.1,3112.7,3.21258]
[1732027317285,0.8037,3113.1,3112.6,3.21274]
[1732027317488,0.8037,3113.4,3112.8,3.21248]
[1732027317917,0.8037,3113.4,3112.7,3.21256]
[1732027318346,3.3535008,3113.6,3113.2,3.21212]
[1732027318347,0.1417608,3113.6,3113.2,3.21212]
[1732027318491,0.1417608,3113.6,3113.0,3.21226]
[1732027318686,0.1417608,3113.6,3112.9,3.21242]
[1732027318899,0.1417608,3113.6,3112.5,3.7628]
[1732027319114,3.21225,3113.1,3112.5,3.21284]
[1732027319329,0.1417608,3113.6,3112.5,0.7649]
[1732027319498,0.1417608,3113.6,3112.9,3.21235]
[1732027319499,3.3535608,3113.6,3112.9,3.21235]
[1732027319703,3.21192,3113.4,3112.8,3.21247]
[1732027320027,0.64384688,3113.6,3112.7,3.21264]
[1732027320028,3.21182,3113.5,3112.7,3.21264]
[1732027320198,3.21182,3113.5,3112.4,3.21285]
[1732027320199,0.7807,3113.4,3112.4,3.21285]
[1732027320536,0.7807,3113.4,3112.4,3.21288]
[1732027320537,3.21235,3113.0,3112.4,3.21288]
[1732027320692,0.7807,3113.4,3112.7,3.21262]
[1732027320895,3.21202,3113.3,3112.6,6.42536]
[1732027321116,0.7807,3113.4,3112.8,3.21252]
[1732027321434,0.7807,3113.4,3112.1,7.5812972]
[1732027321435,0.7807,3113.4,3112.9,3.21233]
[1732027321743,0.7807,3113.4,3113.1,3.21217]
[1732027321947,0.7807,3113.4,3112.9,3.21237]
[1732027322497,0.7807,3113.4,3113.0,3.21232]
[1732027322830,0.7807,3113.4,3112.9,3.21236]
[1732027323192,0.7807,3113.4,3113.0,3.21232]
[1732027323396,0.7807,3113.4,3113.1,3.2122]
[1732027323721,0.1417608,3113.6,3112.9,3.21243]
[1732027323891,3.21194,3113.4,3112.8,3.21253]
[1732027324088,0.1417608,3113.6,3112.9,3.21236]
[1732027324338,0.1417608,3113.6,3113.1,3.21218]
[1732027324704,0.1417608,3113.6,3113.4,3.21189]
[1732027325121,0.1417608,3113.6,3113.5,3.21181]
[1732027325433,0.1417608,3113.6,3113.4,3.21189]
[1732027325843,0.1417608,3113.6,3112.9,4.0259]
[1732027325844,0.1417608,3113.6,3113.3,3.21199]
[1732027326046,0.1417608,3113.6,3113.4,3.21191]
[1732027326254,0.1417608,3113.6,3112.9,0.8135]
[1732027326545,0.1417608,3113.6,3113.3,3.21195]
[1732027326701,0.1417608,3113.6,3113.4,3.21184]
[1732027326901,0.1417608,3113.6,3113.1,3.21215]
[1732027327099,0.1417608,3113.6,3112.9,4.02587]
[1732027327100,0.1417608,3113.6,3113.3,3.21196]
[1732027327337,0.1417608,3113.6,3113.4,3.21186]
[1732027327636,0.1417608,3113.6,3113.2,3.21203]
[1732027327938,0.1417608,3113.6,3112.5,3.98911]
[1732027328139,3.21206,3113.3,3112.7,3.21262]
[1732027328295,3.21181,3113.5,3112.8,3.21252]
[1732027328496,0.7522,3113.2,3112.3,3.21305]
[1732027328700,0.7522,3113.2,3113.0,3.21232]
[1732027328936,0.8939608,3113.6,3112.3,6.4261]
[1732027329145,0.8939608,3113.6,3113.2,3.21212]
[1732027329294,0.8939608,3113.6,3113.4,3.21186]
[1732027329635,0.1417608,3113.6,3113.5,3.21181]
[1732027331905,0.1417608,3113.6,3113.3,3.21197]
[1732027332450,0.1417608,3113.6,3113.1,3.21218]
[1732027332623,0.1417608,3113.6,3113.2,3.21204]
[1732027332821,3.96942,3113.5,3112.5,3.21285]
[1732027333147,3.96942,3113.5,3113.0,3.21231]
[1732027333376,3.96942,3113.5,3112.9,3.2124]
[1732027333745,4.46803808,3113.5,3112.9,3.2124]
[1732027333938,0.7576,3113.5,3113.0,3.21232]
[1732027334376,0.7576,3113.5,3113.1,3.21217]
[1732027334540,0.7576,3113.5,3113.0,3.21232]
[1732027334863,3.21193,3113.4,3112.9,3.21242]
[1732027335179,4.46803108,3113.5,3112.8,3.21248]
[1732027335390,4.46803108,3113.5,3112.1,0.47889055]
[1732027335391,0.7576,3113.5,3112.1,0.47889055]
[1732027335555,0.7892,3112.9,3112.1,0.8006]
[1732027335878,0.7892,3112.9,3112.5,3.21279]
[1732027336064,0.7892,3112.9,3112.1,0.8006]
[1732027336280,0.7892,3113.3,3112.9,3.21234]
[1732027336736,0.7892,3113.3,3113.0,3.21233]
[1732027337175,0.7892,3113.3,3113.1,3.21222]
[1732027337379,3.3535408,3113.6,3112.1,7.8169072]
[1732027337380,3.21182,3113.5,3112.1,7.8169072]
[1732027337681,0.1417608,3113.6,3113.3,3.21201]
[1732027337978,0.1417608,3113.6,3113.1,3.21221]
[1732027338183,0.1417608,3113.6,3113.3,3.21202]
[1732027338340,0.1417608,3113.6,3112.9,3.21236]
[1732027338341,3.53149688,3113.6,3112.9,3.21236]
[1732027338545,3.21199,3113.4,3112.7,3.21258]
[1732027338747,1.20324969,3113.5,3113.1,3.21219]
[1732027338946,1.20324969,3113.5,3113.0,3.21232]
[1732027339148,1.20324969,3113.5,3113.1,3.21221]
[1732027339447,0.7626,3113.5,3113.1,3.21216]
[1732027339867,0.7626,3113.5,3113.2,3.2121]
[1732027340068,0.7626,3113.5,3113.4,3.21192]
[1732027340379,3.3535008,3113.6,3113.1,3.21214]
[1732027340587,0.33535008,3113.5,3112.9,3.21237]
[1732027341087,0.7701,3113.3,3112.7,3.21256]
[1732027341293,0.7701,3113.3,3112.8,3.21251]
[1732027341587,0.7701,3113.3,3112.1,4.03296]
[1732027341744,0.7701,3113.3,3112.2,1.02889055]
[1732027341941,0.7701,3113.3,3113.2,3.21212]
[1732027342189,0.1417608,3113.6,3113.4,3.21189]
[1732027342683,0.1417608,3113.6,3112.9,0.55]
[1732027342840,0.1417608,3113.6,3112.2,0.47889055]
[1732027343043,0.1417608,3113.6,3112.9,3.21239]
[1732027343274,0.1417608,3113.6,3112.5,0.06424254]
[1732027343493,0.87527188,3113.6,3113.1,3.21222]
[1732027343641,0.87527188,3113.6,3112.9,3.2124]
[1732027343841,3.3535708,3113.6,3113.0,3.21227]
[1732027344067,3.21198,3113.4,3112.7,3.21258]
[1732027344278,3.3535708,3113.6,3113.1,3.21222]
[1732027344506,0.1417608,3113.6,3113.3,3.21195]
[1732027344685,0.1417608,3113.6,3112.5,3.2128]
[1732027344686,0.1417608,3113.6,3113.1,3.21214]
[1732027345048,0.1417608,3113.6,3113.1,3.21219]
[1732027345250,0.1417608,3113.6,3112.8,3.7625]
[1732027345451,0.1417608,3113.6,3113.3,3.21192]
[1732027345654,0.1417608,3113.6,3113.4,3.21186]
[1732027345870,0.1417608,3113.6,3112.8,3.2125]
[1732027345871,0.1417608,3113.6,3113.2,3.2121]
[1732027346087,0.1417608,3113.6,3112.4,0.8197]
[1732027346395,3.21199,3113.4,3112.8,3.21247]
[1732027346544,3.54736508,3113.4,3112.7,3.21255]
[1732027346752,3.21239,3113.0,3112.3,3.21299]
[1732027347270,3.21244,3112.9,3112.4,3.21294]
[1732027347478,3.21245,3112.9,3112.4,3.21294]
[1732027347677,0.8143,3113.1,3112.7,3.21263]
[1732027348048,4.69614777,3113.5,3112.3,0.55]
[1732027348049,0.8222,3113.5,3112.3,0.55]
[1732027348274,0.8222,3113.5,3112.9,3.21235]
[1732027348479,0.8222,3113.5,3112.8,3.21251]
[1732027348480,3.21199,3113.4,3112.8,3.21251]
[1732027348701,3.21199,3113.4,3112.7,3.21259]
[1732027348702,3.21213,3113.2,3112.7,3.21259]
[1732027348917,3.21206,3113.3,3112.7,3.21256]
[1732027349103,4.03407,3113.5,3112.9,3.21236]
[1732027349306,7.24597,3113.5,3112.9,3.21236]
[1732027349615,7.24597,3113.5,3113.0,3.21232]
[1732027349616,0.73877308,3113.4,3113.0,3.21232]
[1732027349820,4.03403,3113.5,3113.0,3.21232]
[1732027349979,0.8222,3113.5,3112.6,3.21269]
[1732027350179,3.21218,3113.2,3112.5,3.21282]
[1732027350381,3.21242,3113.0,3112.4,3.21292]
[1732027350619,3.21255,3112.8,3112.2,3.21308]
[1732027350804,3.21246,3112.9,3112.3,3.21296]
[1732027351008,3.21246,3112.9,3112.0,0.8313]
[1732027351009,0.792,3112.9,3112.0,3.2133]
[1732027351213,3.21263,3112.8,3111.7,0.8]
[1732027351384,0.792,3112.9,3112.0,3.21331]
[1732027351385,3.21285,3112.5,3112.0,3.21331]
[1732027351810,3.21285,3112.5,3111.0,6.8130972]
[1732027351811,3.99079,3112.2,3111.6,3.21377]
[1732027352107,3.99079,3112.2,3111.7,3.21364]
[1732027352108,0.7776,3112.2,3111.7,3.21364]
[1732027352435,3.21328,3112.1,3111.5,3.21378]
[1732027352599,0.7776,3112.2,3110.9,4.44339055]
[1732027352600,0.7776,3112.2,3110.9,1.22889055]
[1732027352927,0.7776,3112.5,3112.3,3.21297]
[1732027353223,0.7776,3112.5,3112.2,3.21309]
[1732027353425,3.99045,3112.5,3112.0,3.21333]
[1732027353739,0.7776,3112.5,3112.2,3.21308]
[1732027354188,0.77423586,3113.6,3112.6,3.21272]
[1732027354189,0.8129,3112.9,3112.6,3.21272]
[1732027354584,0.8129,3112.9,3112.8,3.21254]
[1732027355091,3.21192,3113.4,3112.9,3.21235]
[1732027355092,0.7554,3113.4,3112.9,3.21235]
[1732027355385,0.7554,3113.4,3112.9,3.21233]
[1732027355585,0.7554,3113.4,3112.7,3.21255]
[1732027355827,0.7554,3113.4,3113.0,3.21224]
[1732027356045,3.21208,3113.3,3112.7,3.21258]
[1732027356328,3.21208,3113.3,3112.3,3.21305]
[1732027356329,3.21249,3112.9,3112.3,3.21296]
[1732027356635,0.7529,3113.0,3112.5,3.21278]
[1732027356925,0.7529,3113.0,3111.3,0.7584]
[1732027357132,4.00835,3112.5,3111.9,3.21341]
[1732027357439,4.0084,3112.5,3111.9,3.21341]
[1732027357597,4.0084,3112.5,3111.3,0.7584]
[1732027357598,0.7955,3112.5,3111.3,0.7584]
[1732027357807,3.21297,3112.4,3111.8,3.21353]
[1732027358104,3.21354,3111.9,3110.7,0.7584]
[1732027358316,0.7782,3111.8,3111.4,3.21391]
[1732027358524,0.7782,3111.8,3110.8,3.2146]
[1732027358735,0.7782,3111.8,3111.5,3.21383]
[1732027358929,3.21378,3111.6,3111.0,6.42865]
[1732027359239,0.720561,3111.6,3111.1,3.21423]
[1732027359531,0.7782,3111.8,3111.3,3.21406]
[1732027359712,0.7782,3111.8,3111.5,3.21388]
[1732027360137,0.7782,3111.8,3111.1,3.21422]
[1732027360285,0.7782,3111.8,3111.3,3.21408]